fUST/lending_fUST_20250101
["ID","MTS","AMOUNT","RATE_DAILY","PERIOD"]
[347363720,1735733447317,-500.0,0.00019178,2]
[347363722,1735733447326,-500.0,0.00019178,2]
[347363724,1735733447335,-500.0,0.00019178,2]
[347363726,1735733447345,-500.0,0.00019178,2]
[347363728,1735733447354,-503.08278977,0.00019178,2]
[347363730,1735733447366,-5.67375244,0.00019178,2]
[347363733,1735733447399,-282.14509148,0.00019178,2]
[347365018,1735734233371,163.377625,0.00013973,2]
[347365115,1735734631854,-300.0,0.00017498,2]
[347365116,1735734631864,-293.30479882,0.00017499,2]
[347365117,1735734631875,-16.47188082,0.00017499,2]
[347365118,1735734631886,-508.58909786,0.00017499,2]
[347365119,1735734631895,-155.36090214,0.00017499,2]
[347365120,1735734631911,-138.40666071,0.00017499,2]
[347365121,1735734631920,-309.67436432,0.00017499,2]
[347365122,1735734631930,-500.0,0.00017499,2]
[347365123,1735734631939,-599.29387817,0.00017499,2]
[347365124,1735734631949,-550.86606117,0.00017499,2]
[347365125,1735734631959,-650.55210854,0.00017499,2]
[347365126,1735734631969,-190.36352092,0.000175,2]
[347365127,1735734631980,-273.92914188,0.000175,2]
[347365128,1735734631994,-2658.40247378,0.000175,2]
[347365129,1735734632006,-2122.74215209,0.000175,4]
[347365131,1735734632017,-603.74217233,0.000175,4]
[347365132,1735734632029,-1447.772442,0.000175,4]
[347365133,1735734632041,-306.83036793,0.000175,4]
[347365140,1735734637800,-1286730.66973678,0.000175,4]
[347365141,1735734637856,-6481.15113542,0.000175,4]
[347365142,1735734637913,-1504.90726,0.000175,4]
[347365147,1735734639913,-2059.24188361,0.000175,4]
[347365160,1735734642782,-10193.29341145,0.000175,4]
[347365162,1735734642839,-408.49576019,0.000175,4]
[347365164,1735734642850,-4269.87080956,0.000175,4]
[347365499,1735734645834,-20164.70395502,0.000175,4]
[347365501,1735734645845,-24582.27133471,0.000175,4]
[347365503,1735734645857,-15790.96,0.000175,4]
[347365506,1735734645868,-2196.34688402,0.000175,4]
[347365508,1735734645879,-7840.0,0.000175,4]
[347366126,1735734754631,1878.0,0.00022757,120]
[347366152,1735735832011,-494.28523061,0.00015203,2]
[347366154,1735735832020,-355.11888242,0.00015357,2]
[347366156,1735735832032,-422.076,0.00015357,2]
[347366205,1735735837907,-2139.4034361,0.00015357,2]
[347366207,1735735837919,-2083.40168148,0.00015357,2]
[347366209,1735735837928,-2256.28271794,0.00016474,2]
[347366214,1735735837959,-14716.04873456,0.00016474,2]
[347366216,1735735837968,-2436.2171993,0.00016474,2]
[347366218,1735735837978,-849.18456932,0.00017202,2]
[347366220,1735735837987,-754.56284108,0.00017373,2]
[347366222,1735735837996,-2079.79506561,0.000174,2]
[347366224,1735735838005,-2285.05716888,0.000174,2]
[347366226,1735735838014,-500.0,0.00017473,2]
[347366229,1735735838023,-500.0,0.00017499,2]
[347366231,1735735838032,-160.0,0.00017499,2]
[347366233,1735735838041,-1466.16580783,0.000175,2]
[347366235,1735735838050,-1260983.6383502,0.000175,4]
[347366238,1735735838064,-447.72129026,0.000175,4]
[347366603,1735735841620,-8034.65649337,0.000175,4]
[347366605,1735735841633,-1707.63158257,0.000175,4]
[347366624,1735735841795,-136850.20957499,0.000175,4]
[347366626,1735735841806,-293.47199999,0.000175,4]
[347366790,1735735842972,-345.450003,0.000175,4]
[347366803,1735735843026,-1260.62651095,0.000175,4]
[347366806,1735735843037,-462094.88595469,0.000175,4]
[347367133,1735735846082,-9658.51228529,0.000175,4]
[347367321,1735735895774,-160.0,0.00023093,120]
[347367322,1735735895802,-57.39451083,0.0002353,120]
[347367323,1735735895980,-102.60548917,0.0002353,120]
[347367324,1735735896006,-160.0,0.00023599,120]
[347367325,1735735896032,-160.0,0.0002406,120]
[347367326,1735735896053,-160.0,0.00024105,120]
[347367327,1735735896100,-160.0,0.00025402,120]
[347367328,1735735896125,-197.30885,0.000255,120]
[347367329,1735735896339,-20.08566083,0.000255,120]
[347367330,1735735896362,-160.0,0.0002565,120]
[347367331,1735735896389,-181.10548917,0.00026,120]
[347367332,1735735906255,163.778777,0.00013973,2]
[347367334,1735735986004,12996.08632403,0.00014987,2]
[347367335,1735735986288,12996.08632403,0.00014986,2]
[347367336,1735735986565,12996.08632403,0.0001499,2]
[347367363,1735737006044,536.0,0.00022757,120]
[347367415,1735737032356,-5000.0,0.000152,2]
[347367417,1735737032366,-2669.48504713,0.00015354,2]
[347367419,1735737032376,-704.005718,0.0001625,2]
[347367421,1735737032386,-300.0,0.00016326,2]
[347367423,1735737032395,-3097.7391668,0.00016327,2]
[347367425,1735737032404,-500.0,0.00016473,2]
[347367427,1735737032414,-10308.27214896,0.00017066,2]
[347367429,1735737032423,-172.657,0.0001715,2]
[347367431,1735737032433,-500.0,0.00017295,4]
[347367433,1735737032442,-352.6179867,0.000173,2]
[347367435,1735737032451,-352.6179867,0.000173,2]
[347367437,1735737032460,-352.6179867,0.000173,2]
[347367438,1735737032470,-352.6179867,0.000173,2]
[347367440,1735737032479,-352.6179867,0.000173,2]
[347367442,1735737032489,-580.7518093,0.000173,2]
[347367444,1735737032499,-352.5060848,0.000173,2]
[347367446,1735737032508,-2284.3622451,0.000174,2]
[347367448,1735737032517,-5166.82172146,0.000174,2]
[347367450,1735737032527,-152.0,0.00017473,2]
[347367452,1735737032536,-500.0,0.00017499,2]
[347367454,1735737032545,-379.04443122,0.00017499,2]
[347367456,1735737032555,-507.05944231,0.00017499,2]
[347367458,1735737032564,-500.0,0.00017499,2]
[347367460,1735737032573,-542.34279751,0.00017499,2]
[347367462,1735737032582,-500.0,0.00017499,2]
[347367464,1735737032592,-248.56025814,0.00017499,2]
[347367467,1735737032601,-500.0,0.00017499,2]
[347367469,1735737032610,-500.0,0.00017499,2]
[347367471,1735737032620,-500.0,0.00017499,2]
[347367473,1735737032630,-500.0,0.00017499,2]
[347367475,1735737032639,-246.48109374,0.00017499,2]
[347367477,1735737032648,-266.22268876,0.00017499,2]
[347367479,1735737032659,-249.60901041,0.00017499,2]
[347367481,1735737032668,-160.0,0.00017499,2]
[347367483,1735737032677,-1370.37472616,0.000175,2]
[347367485,1735737032687,-48572.5146767,0.000175,2]
[347367488,1735737032699,-4947.6688089,0.000175,2]
[347367490,1735737032708,-344837.60664958,0.000175,4]
[347367492,1735737032718,-2454.11,0.000175,2]
[347367494,1735737032727,-5741.39,0.000175,2]
[347367496,1735737032736,-2404526.79770142,0.000175,4]
[347367704,1735737038078,-149654.19229858,0.000175,4]
[347367706,1735737038088,-1500.0,0.000175,2]
[347367708,1735737038098,-1500.0,0.000175,2]
[347367710,1735737038107,-1500.0,0.000175,2]
[347367712,1735737038116,-1500.0,0.000175,2]
[347367714,1735737038126,-1500.0,0.000175,2]
[347367716,1735737038135,-1500.0,0.000175,2]
[347367718,1735737038144,-1644.68,0.000175,2]
[347367720,1735737038154,-1500.0,0.000175,2]
[347367722,1735737038163,-1500.0,0.000175,2]
[347367724,1735737038173,-1500.0,0.000175,2]
[347367726,1735737038183,-1500.0,0.000175,2]
[347367728,1735737038192,-1105715.74870364,0.000175,4]
[347367731,1735737038213,-368.10558925,0.000175,4]
[347367734,1735737038225,-7156.17125702,0.000175,4]
[347367736,1735737038236,-1594.47001093,0.000175,4]
[347367738,1735737038248,-3310.09749913,0.000175,4]
[347367741,1735737038264,-1790.90305565,0.000175,4]
[347367894,1735737040151,-369.15774874,0.00017325,2]
[347367895,1735737040161,-1052.28064879,0.000175,4]
[347367900,1735737040210,-433.31353003,0.000175,4]
[347367902,1735737040221,-1354.55067164,0.000175,4]
[347367904,1735737040233,-8186.45011645,0.000175,4]
[347368163,1735737043260,-130021.53891747,0.000175,4]
[347368165,1735737043270,-66600.91016263,0.000175,4]
[347368453,1735737046190,-500.0,0.00017473,2]
[347368455,1735737046200,-15205.96,0.000175,4]
[347368472,1735737046345,-23833.70301369,0.000175,4]
[347368583,1735737186351,175.589838,0.00013973,2]
[347368691,1735738110909,275.45592763,0.0001,2]
[347369290,1735738238296,-697.03423744,0.00016021,2]
[347369307,1735738238446,-1874.80965048,0.00016021,2]
[347369310,1735738238456,-352.002859,0.00016346,2]
[347369313,1735738238465,-801.17349002,0.00016358,2]
[347369658,1735738241814,-40.71295008,0.00016358,2]
[347369660,1735738241824,-263.44667556,0.000165,3]
[347370113,1735738392879,186.810346,0.00013973,2]
[347370151,1735739303114,177.469828,0.00013973,2]
[347370196,1735739432548,-933.51,0.00015714,2]
[347370274,1735739438478,-6.88111427,0.00015714,2]
[347370276,1735739438487,-233.02981778,0.00015859,2]
[347370278,1735739438497,-1768.0,0.00015873,2]
[347370280,1735739438506,-188.93279728,0.00015895,2]
[347370282,1735739438516,-300.0,0.00015958,2]
[347370284,1735739438525,-685.18736307,0.00015959,2]
[347370286,1735739438534,-28980.1295304,0.00015959,2]
[347370288,1735739438546,-24434.82958953,0.00015959,2]
[347370290,1735739438555,-3194.42410355,0.00015959,2]
[347370292,1735739438567,-581.65499999,0.00015959,2]
[347370503,1735739440509,-1865.72,0.00015959,2]
[347370515,1735739440607,-4666.47304543,0.00015959,2]
[347370517,1735739440617,-176.00143,0.00016023,2]
[347370519,1735739440627,-736.55332444,0.000165,3]
[347370521,1735739440641,-111.79543158,0.00016648,2]
[347371100,1735739446537,-77.13736568,0.00016648,2]
[347371102,1735739446547,-422.86263432,0.00017,2]
[347371103,1735739446558,-500.0,0.00017,2]
[347371125,1735740201636,168.596336,0.00013973,2]
[347371131,1735740621909,10000.0,0.00015,2]
[347371185,1735740632802,-176.00143,0.00016,2]
[347371187,1735740632812,-537.3636936,0.00016025,2]
[347371189,1735740632821,-268.59,0.00016438,2]
[347371191,1735740632830,-201.2645565,0.000169,2]
[347371193,1735740632839,-342.59368154,0.00017,2]
[347371195,1735740632849,-6876.69630254,0.00017,2]
[347371197,1735740632861,-1012.336023,0.00017,2]
[347371200,1735740632876,-461.015,0.00017,2]
[347371342,1735740638760,-18357.43223443,0.00017,2]
[347371344,1735740638769,-577.13736568,0.00017,2]
[347371346,1735740638778,-23728.52665349,0.00017,2]
[347371348,1735740638788,-30117.52982654,0.00017,3]
[347371543,1735740640848,-5203.74862104,0.00017,3]
[347371643,1735740641794,10000.0,0.00015,2]
[347371899,1735740643919,-2913.58644193,0.00017,3]
[347372096,1735740646869,-18577.59999999,0.00017,3]
[347372097,1735740646893,-929.0,0.00017,3]
[347372151,1735740698972,1000.0,0.00022,120]
[347372156,1735741065264,160.166519,0.00013973,2]
[347372169,1735741696039,3043.61449866,0.000125,2]
[347372170,1735741711185,344.31598703,0.000138,2]
[347372171,1735741714742,236.21001102,0.0001,7]
[347372222,1735741832111,-12998.7639123,0.00015697,2]
[347372223,1735741832120,-372.486029,0.00015766,2]
[347372224,1735741832130,-1244.31894481,0.000158,2]
[347372225,1735741832145,-2578.26070074,0.000158,2]
[347372226,1735741832154,-341.73963923,0.00016,2]
[347372227,1735741832164,-489.054,0.0001615,2]
[347372228,1735741832173,-348.8758252,0.00016829,2]
[347372229,1735741832182,-233.02981772,0.000169,2]
[347372230,1735741832192,-302.0,0.00016999,2]
[347372231,1735741832201,-374.15478731,0.00017,3]
[347372232,1735741832213,-4163.79624662,0.00017,3]
[347372267,1735741837927,-8715.04636366,0.00017,3]
[347372268,1735741837939,-5770.09776704,0.00017,3]
[347372276,1735741838042,-27741.22203388,0.00017,3]
[347372452,1735741839938,-33957.46365999,0.00017,3]
[347372454,1735741839948,-250.0,0.00017,2]
[347372456,1735741839957,-250.0,0.00017,2]
[347372458,1735741839967,-1000.0,0.00017,17]
[347372460,1735741839976,-153.0,0.00017,2]
[347372462,1735741839985,-6213.83201144,0.000173,2]
[347372464,1735741839995,-201.2645565,0.000173,2]
[347372466,1735741840004,-151.0,0.00017397,2]
[347372468,1735741840013,-151.0,0.00017397,2]
[347372470,1735741840022,-500.0,0.00017397,2]
[347372472,1735741840031,-500.0,0.00017397,2]
[347372474,1735741840040,-500.0,0.00017397,2]
[347372476,1735741840049,-500.0,0.00017397,2]
[347372478,1735741840058,-272.40243566,0.00017397,2]
[347372480,1735741840069,-608.0933036,0.00017397,2]
[347372482,1735741840078,-500.0,0.00017397,2]
[347372484,1735741840087,-500.0,0.00017397,2]
[347372486,1735741840097,-500.0,0.00017397,2]
[347372488,1735741840107,-500.0,0.00017397,2]
[347372490,1735741840116,-500.0,0.00017397,2]
[347372492,1735741840125,-500.0,0.00017397,2]
[347372494,1735741840134,-500.0,0.00017397,2]
[347372496,1735741840144,-642.92226674,0.00017397,2]
[347372498,1735741840154,-500.0,0.00017397,2]
[347372500,1735741840163,-500.0,0.00017397,2]
[347372502,1735741840172,-500.0,0.00017397,2]
[347372504,1735741840182,-500.0,0.00017397,2]
[347372506,1735741840191,-500.0,0.00017397,2]
[347372508,1735741840201,-500.0,0.00017397,2]
[347372510,1735741840210,-500.0,0.00017397,2]
[347372512,1735741840220,-530.82726846,0.00017397,2]
[347372514,1735741840229,-500.0,0.00017397,2]
[347372516,1735741840239,-500.0,0.00017397,2]
[347372519,1735741840249,-500.0,0.00017397,2]
[347372521,1735741840258,-500.0,0.00017397,2]
[347372523,1735741840268,-500.0,0.00017397,2]
[347372525,1735741840277,-181.0,0.00017397,2]
[347372527,1735741840287,-218.398346,0.00017398,2]
[347372529,1735741840296,-218.398346,0.00017398,2]
[347372531,1735741840306,-202.3138,0.00017398,2]
[347372533,1735741840315,-202.3138,0.00017398,2]
[347372535,1735741840324,-591.224261,0.00017398,2]
[347372537,1735741840334,-591.224261,0.00017398,2]
[347372539,1735741840344,-160.219361,0.00017398,2]
[347372541,1735741840353,-529.215735,0.00017398,2]
[347372543,1735741840364,-529.215735,0.00017398,2]
[347372545,1735741840373,-1035.343372,0.00017398,2]
[347372547,1735741840382,-1035.343372,0.00017398,2]
[347372549,1735741840392,-151.0,0.00017398,2]
[347372551,1735741840401,-151.0,0.00017398,2]
[347372553,1735741840412,-154.054485,0.00017398,2]
[347372555,1735741840422,-151.0,0.00017398,2]
[347372557,1735741840431,-151.0,0.00017398,2]
[347372559,1735741840440,-151.0,0.00017398,2]
[347372561,1735741840450,-13353.73977998,0.00017398,2]
[347372563,1735741840459,-151.0,0.00017399,2]
[347372565,1735741840468,-548.324328,0.00017399,2]
[347372567,1735741840478,-151.0,0.00017399,2]
[347372569,1735741840491,-151.0,0.00017399,2]
[347372571,1735741840500,-151.0,0.00017399,2]
[347372573,1735741840510,-439.389215,0.00017399,2]
[347372575,1735741840520,-439.389215,0.00017399,2]
[347372577,1735741840530,-151.0,0.00017399,2]
[347372579,1735741840540,-151.0,0.00017399,2]
[347372581,1735741840549,-151.0,0.00017399,2]
[347372583,1735741840558,-155.193948,0.00017399,2]
[347372585,1735741840575,-155.193948,0.00017399,2]
[347372586,1735741840586,-329.988807,0.00017399,2]
[347372587,1735741840728,-329.988807,0.00017399,2]
[347372588,1735741840739,-151.0,0.00017399,2]
[347372589,1735741840750,-151.0,0.00017399,2]
[347372590,1735741840759,-171.29684077,0.000174,2]
[347372591,1735741840770,-151.0,0.000174,2]
[347372592,1735741840779,-151.0,0.000174,2]
[347372594,1735741840788,-155.771079,0.000174,2]
[347372595,1735741840798,-1188.035658,0.000174,2]
[347372597,1735741840807,-1188.035658,0.000174,2]
[347372599,1735741840817,-1188.035658,0.000174,2]
[347372601,1735741840826,-1188.035658,0.000174,2]
[347372603,1735741840835,-548.324328,0.000174,2]
[347372605,1735741840844,-548.324328,0.000174,2]
[347372607,1735741840854,-151.0,0.000174,2]
[347372609,1735741840865,-151.0,0.000174,2]
[347372611,1735741840875,-151.0,0.000174,2]
[347372613,1735741840884,-151.0,0.000174,2]
[347372615,1735741840893,-439.389215,0.000174,2]
[347372617,1735741840902,-439.389215,0.000174,2]
[347372619,1735741840912,-439.389215,0.000174,2]
[347372621,1735741840921,-439.389215,0.000174,2]
[347372623,1735741840930,-151.0,0.000174,2]
[347372625,1735741840939,-151.0,0.000174,2]
[347372627,1735741840948,-151.0,0.000174,2]
[347372629,1735741840958,-151.0,0.000174,2]
[347372631,1735741840967,-151.0,0.000174,2]
[347372633,1735741840976,-151.0,0.000174,2]
[347372635,1735741840985,-155.193948,0.000174,2]
[347372637,1735741840994,-155.193948,0.000174,2]
[347372639,1735741841003,-155.193948,0.000174,2]
[347372641,1735741841013,-155.193948,0.000174,2]
[347372643,1735741841022,-171.711844,0.000174,2]
[347372645,1735741841031,-171.711844,0.000174,2]
[347372647,1735741841040,-171.711844,0.000174,2]
[347372649,1735741841049,-171.711844,0.000174,2]
[347372651,1735741841058,-218.398346,0.000174,2]
[347372653,1735741841067,-218.398346,0.000174,2]
[347372655,1735741841076,-218.398346,0.000174,2]
[347372657,1735741841086,-329.988807,0.000174,2]
[347372659,1735741841095,-329.988807,0.000174,2]
[347372661,1735741841104,-218.398346,0.000174,2]
[347372663,1735741841115,-218.398346,0.000174,2]
[347372665,1735741841125,-218.398346,0.000174,2]
[347372668,1735741841135,-329.988807,0.000174,2]
[347372670,1735741841144,-329.988807,0.000174,2]
[347372672,1735741841155,-2055.92602059,0.000174,2]
[347372674,1735741841165,-202.3138,0.000174,2]
[347372676,1735741841175,-202.3138,0.000174,2]
[347372678,1735741841184,-202.3138,0.000174,2]
[347372680,1735741841193,-202.3138,0.000174,2]
[347372682,1735741841203,-202.3138,0.000174,2]
[347372684,1735741841212,-202.3138,0.000174,2]
[347372686,1735741841221,-591.224261,0.000174,2]
[347372688,1735741841232,-591.224261,0.000174,2]
[347372690,1735741841242,-591.224261,0.000174,2]
[347372692,1735741841251,-591.224261,0.000174,2]
[347372694,1735741841260,-591.224261,0.000174,2]
[347372696,1735741841269,-591.224261,0.000174,2]
[347372698,1735741841279,-529.215735,0.000174,2]
[347372700,1735741841288,-529.215735,0.000174,2]
[347372702,1735741841297,-529.215735,0.000174,2]
[347372704,1735741841307,-529.215735,0.000174,2]
[347372706,1735741841316,-529.215735,0.000174,2]
[347372708,1735741841325,-529.215735,0.000174,2]
[347372710,1735741841335,-1035.343372,0.000174,2]
[347372712,1735741841344,-1035.343372,0.000174,2]
[347372714,1735741841353,-1035.343372,0.000174,2]
[347372716,1735741841365,-1035.343372,0.000174,2]
[347372718,1735741841374,-1035.343372,0.000174,2]
[347372720,1735741841383,-1035.343372,0.000174,2]
[347372722,1735741841392,-151.0,0.000174,2]
[347372724,1735741841402,-151.0,0.000174,2]
[347372726,1735741841411,-151.0,0.000174,2]
[347372728,1735741841420,-151.0,0.000174,2]
[347372730,1735741841430,-151.0,0.000174,2]
[347372732,1735741841439,-151.0,0.000174,2]
[347372734,1735741841448,-151.0,0.000174,2]
[347372736,1735741841457,-242.858059,0.000174,2]
[347372738,1735741841467,-151.0,0.000174,2]
[347372740,1735741841476,-151.0,0.000174,2]
[347372742,1735741841486,-151.0,0.000174,2]
[347372744,1735741841497,-32565.83555518,0.000174,2]
[347372746,1735741841508,-151.0,0.000174,2]
[347372748,1735741841517,-151.0,0.000174,2]
[347372750,1735741841527,-151.0,0.000174,2]
[347372752,1735741841536,-151.0,0.000174,2]
[347372754,1735741841547,-151.183472,0.000174,2]
[347372756,1735741841556,-151.269811,0.000174,2]
[347372758,1735741841565,-500.0,0.00017473,2]
[347372760,1735741841575,-201.04434132,0.00017473,2]
[347372762,1735741841585,-399.93685319,0.00017473,2]
[347372764,1735741841595,-500.0,0.00017473,2]
[347372766,1735741841607,-151.0,0.00017473,2]
[347372768,1735741841617,-293.458003,0.00017473,2]
[347372770,1735741841626,-252.00432686,0.00017499,2]
[347372772,1735741841636,-171.90349462,0.00017499,2]
[347372774,1735741841645,-25778.7480408,0.000175,4]
[347372891,1735741842930,-6582.00962915,0.000175,4]
[347372893,1735741842942,-10737.10266231,0.000175,4]
[347372897,1735741842974,-5995.24889863,0.000175,4]
[347372902,1735741842994,-463.7025,0.000175,4]
[347373221,1735741846143,-3538.73583578,0.000175,4]
[347373343,1735741949697,160.166519,0.00013973,2]
[347373344,1735741996129,1261.0,0.00022757,120]
[347373346,1735742889836,160.166519,0.00013973,2]
[347373351,1735743032163,-531.85812224,0.00015179,2]
[347373352,1735743032172,-1072.99909429,0.00015332,2]
[347373353,1735743032181,-310.0,0.00016,30]
[347373354,1735743032191,-85.14278347,0.00016398,2]
[347373449,1735743038010,-101.10023053,0.00016398,2]
[347373451,1735743038020,-468.819,0.0001663,2]
[347373453,1735743038029,-300.0,0.00016833,2]
[347373455,1735743038040,-37220.53258921,0.00016834,2]
[347373457,1735743038050,-214.2100241,0.000169,2]
[347373459,1735743038060,-306.9064059,0.00017096,2]
[347373461,1735743038069,-174.4379126,0.00017324,2]
[347373463,1735743038080,-151.0,0.00017397,2]
[347373465,1735743038090,-284.133479,0.00017397,2]
[347373467,1735743038099,-284.133479,0.00017397,2]
[347373469,1735743038108,-186.347087,0.00017397,2]
[347373471,1735743038117,-186.347087,0.00017397,2]
[347373473,1735743038127,-151.0,0.00017399,2]
[347373475,1735743038137,-284.133479,0.00017399,2]
[347373477,1735743038146,-284.133479,0.00017399,2]
[347373479,1735743038155,-186.347087,0.00017399,2]
[347373481,1735743038165,-186.347087,0.00017399,2]
[347373483,1735743038175,-172.657,0.00017399,2]
[347373485,1735743038184,-151.0,0.000174,2]
[347373487,1735743038194,-151.0,0.000174,2]
[347373489,1735743038203,-284.133479,0.000174,2]
[347373491,1735743038213,-284.133479,0.000174,2]
[347373493,1735743038222,-284.133479,0.000174,2]
[347373495,1735743038233,-284.133479,0.000174,2]
[347373497,1735743038243,-284.133479,0.000174,2]
[347373499,1735743038253,-284.133479,0.000174,2]
[347373501,1735743038262,-284.133479,0.000174,2]
[347373503,1735743038272,-284.133479,0.000174,2]
[347373505,1735743038281,-284.133479,0.000174,2]
[347373507,1735743038291,-284.133479,0.000174,2]
[347373509,1735743038300,-186.347087,0.000174,2]
[347373511,1735743038310,-186.347087,0.000174,2]
[347373513,1735743038320,-186.347087,0.000174,2]
[347373515,1735743038330,-186.347087,0.000174,2]
[347373531,1735743038468,-186.347087,0.000174,2]
[347373533,1735743038479,-186.347087,0.000174,2]
[347373535,1735743038489,-186.347087,0.000174,2]
[347373537,1735743038499,-186.347087,0.000174,2]
[347373539,1735743038508,-20223.95878687,0.000174,2]
[347373541,1735743038518,-500.0,0.00017473,2]
[347373543,1735743038528,-238.10247408,0.00017499,2]
[347373545,1735743038538,-225.64747427,0.00017499,2]
[347373547,1735743038547,-419.15582618,0.00017499,2]
[347373549,1735743038556,-500.0,0.00017499,2]
[347373551,1735743038566,-171.29684076,0.000175,2]
[347373553,1735743038576,-6676.86988999,0.000175,2]
[347373555,1735743038586,-1197282.89279773,0.000175,4]
[347373557,1735743038599,-335724.87301434,0.000175,4]
[347373560,1735743038619,-252.15239808,0.000175,4]
[347373564,1735743038646,-509.765,0.000175,4]
[347373567,1735743038657,-8905.47834189,0.000175,4]
[347373574,1735743038706,-3867.56341619,0.000175,4]
[347373851,1735743041616,-9277.45766498,0.000175,4]
[347373855,1735743041638,-10866.24881461,0.000175,4]
[347373857,1735743041652,-349620.76873772,0.000175,4]
[347373860,1735743041667,-18560.2,0.000175,4]
[347374026,1735743043057,-500.0,0.00017473,2]
[347374028,1735743043069,-5625.29660674,0.000175,4]
[347374042,1735743043194,-3257.76267419,0.000175,4]
[347374346,1735743300567,150.43,0.00013699,2]
[347374347,1735743300887,150.43,0.00013699,2]
[347374348,1735743301229,150.4447511,0.00013699,2]
[347374350,1735743902920,160.166519,0.00013973,2]
[347374418,1735744232588,-14716.0487346,0.00015857,2]
[347374420,1735744232598,-163.261187,0.00015911,2]
[347374422,1735744232607,-300.0,0.00016398,2]
[347374424,1735744232617,-186.243015,0.00016399,2]
[347374426,1735744232626,-24900.0,0.00016399,2]
[347374428,1735744232635,-27798.58840747,0.000164,4]
[347374430,1735744232645,-500.811,0.0001663,2]
[347374432,1735744232654,-174.4379126,0.00017325,2]
[347374446,1735744232665,-32565.83555518,0.000174,2]
[347374448,1735744232798,-153.5878957,0.000174,2]
[347374450,1735744232808,-421.1403735,0.000174,2]
[347374452,1735744232817,-443.7614241,0.000174,2]
[347374454,1735744232826,-153.5878957,0.000174,2]
[347374456,1735744232836,-2446.19717722,0.000174,2]
[347374458,1735744232844,-214.4412851,0.000174,2]
[347374460,1735744232854,-153.5878957,0.000174,2]
[347374462,1735744232863,-152.0,0.00017437,2]
[347374464,1735744232873,-266.34424274,0.00017473,2]
[347374466,1735744232882,-500.0,0.00017473,2]
[347374468,1735744232892,-500.0,0.00017473,2]
[347374470,1735744232901,-500.0,0.00017473,2]
[347374472,1735744232910,-410.27988359,0.00017473,2]
[347374475,1735744232920,-483.71536429,0.00017499,2]
[347374477,1735744232930,-500.0,0.00017499,2]
[347374478,1735744232938,-527.84665965,0.00017499,2]
[347374481,1735744232948,-238.10247408,0.00017499,2]
[347374483,1735744232957,-419.15582618,0.00017499,2]
[347374484,1735744232966,-500.0,0.00017499,2]
[347374486,1735744232976,-225.64747427,0.00017499,2]
[347374488,1735744232985,-527.93237078,0.000175,2]
[347374490,1735744232994,-58233.30340958,0.000175,2]
[347374492,1735744233004,-106540.09106828,0.000175,4]
[347374495,1735744233016,-19439.19,0.000175,4]
[347374497,1735744233027,-29814.41872226,0.000175,4]
[347374499,1735744233037,-7285.18127772,0.000175,4]
[347374501,1735744233048,-5931.26872228,0.000175,4]
[347374503,1735744233058,-160965.22431224,0.000175,4]
[347374506,1735744233070,-74696.88568776,0.000175,4]
[347374508,1735744233079,-2208.69,0.000175,2]
[347374509,1735744233089,-5167.25,0.000175,2]
[347374512,1735744233098,-427.4,0.000175,2]
[347374514,1735744233108,-83999.77431238,0.000175,2]
[347374611,1735744238210,-500.0,0.00017473,2]